{"text_format":"1","workbook":"xlsx","n_sheets":2,"sheets":["Výpočet konzumční křivky","křivky"],"not_rendered":{"charts":0,"images":10,"macros":1,"external_links":0,"defined_names":2,"comments":1,"pivot_tables":0},"unopened":[],"bounds":{"document_bytes":16777216,"sheet_cells":100000,"rows_first":2000,"rows_last":500,"rows_between":2000,"halvings":0,"cell_chars":16384,"cell_head_chars":4096},"cells_cut":0,"cells_raw":0,"read":"whole","date_system":"1900"}

{"sheet":"Výpočet konzumční křivky","index":0,"n_rows":191,"n_cols":23,"rows_kept":191,"cut":false,"hidden":false,"merged":[[1,5,1,10],[14,6,14,10],[15,6,15,10],[16,3,16,10],[17,3,17,10],[11,3,11,10],[12,3,12,4],[13,3,13,4],[14,3,14,4],[15,3,15,4],[1,3,1,4],[9,6,9,10],[57,0,57,2],[57,3,57,10],[0,3,0,4],[0,5,0,10],[10,3,10,5],[64,0,64,10],[66,0,66,2],[66,3,66,10],[93,0,93,1],[90,3,90,6],[91,3,91,6],[6,3,6,5],[5,3,5,5],[74,3,74,10],[89,0,91,2],[89,3,89,6],[93,5,93,10],[67,3,67,10],[68,3,68,10],[3,8,3,10],[2,8,2,10],[2,4,2,5],[12,6,12,10],[13,6,13,10],[16,14,17,16],[19,12,19,13],[16,12,17,13],[41,3,41,10],[29,13,29,17],[30,13,30,17],[48,0,48,10],[49,0,49,2],[49,3,49,10],[36,3,36,10],[43,0,43,2],[30,0,30,2],[28,0,28,10],[32,0,32,2],[49,13,56,13],[46,12,46,18],[47,12,47,18],[51,3,51,10],[52,3,52,10],[45,0,45,2],[55,0,55,2],[221,0,228,8],[85,13,85,15],[93,11,93,13],[124,0,124,10],[125,0,125,1],[125,3,125,4],[144,7,144,10],[145,1,145,10],[141,7,141,8],[112,3,112,4],[121,3,121,8],[112,5,112,6],[121,0,121,2],[110,7,110,8],[108,7,108,8],[108,3,108,4],[108,15,109,15],[114,0,114,10],[196,0,196,10],[191,7,191,8],[110,5,110,6],[115,0,115,2],[113,0,113,10],[92,0,92,5],[14,15,14,16],[20,11,21,11],[20,12,20,13],[14,12,15,13],[18,12,18,13],[12,11,12,12],[13,12,13,13],[29,0,29,2],[62,6,62,10],[53,0,54,10],[56,3,56,10],[56,0,56,2],[55,3,55,10],[33,3,33,10],[36,0,36,2],[49,14,57,14],[45,12,45,18],[58,0,58,2],[45,3,45,10],[46,0,46,2],[46,3,46,10],[44,3,44,4],[43,8,43,10],[50,3,50,10],[36,21,36,25],[41,0,41,2],[44,7,44,8],[29,18,29,21],[30,18,30,21],[29,22,29,25],[30,22,30,25],[32,3,32,10],[60,0,60,2],[59,0,59,2],[33,14,33,17],[51,22,51,28],[37,0,37,2],[33,0,33,2],[36,16,36,20],[42,0,42,2],[36,13,36,15],[42,8,42,10],[37,3,37,10],[39,0,40,2],[38,0,38,2],[38,3,38,10],[44,5,44,6],[44,0,44,2],[2,11,5,14],[103,3,103,6],[104,3,104,6],[101,0,101,6],[86,0,88,2],[86,3,86,6],[30,3,30,8],[94,4,94,5],[94,7,94,8],[29,3,29,8],[80,0,80,10],[52,0,52,2],[98,3,98,6],[51,0,51,2],[10,11,10,12],[11,11,11,12],[94,0,94,1],[67,0,67,2],[69,0,69,2],[69,3,69,10],[84,5,84,7],[73,0,73,2],[81,0,81,10],[87,3,87,6],[109,3,109,4],[108,5,108,6],[109,7,109,8],[110,3,110,4],[112,7,112,8],[115,3,115,10],[117,6,117,10],[111,3,111,4],[63,0,63,2],[63,5,63,10],[65,1,65,8],[74,0,74,2],[71,3,71,10],[72,0,72,2],[88,3,88,6],[79,0,79,10],[83,0,83,7],[82,0,82,6],[106,0,106,10],[111,5,111,6],[111,7,111,8],[195,5,195,6],[50,0,50,2],[192,8,192,10],[118,0,118,1],[120,0,120,1],[118,7,118,8],[118,4,118,5],[141,1,141,4],[126,7,140,10],[75,0,75,2],[75,3,75,5],[75,7,75,10],[76,0,76,2],[76,3,76,10],[70,0,70,2],[70,3,70,10],[71,0,71,2],[62,0,62,2],[144,4,144,6],[125,5,125,6],[189,0,189,10],[85,5,85,7],[58,8,60,10],[109,5,109,6],[124,29,125,29],[124,30,125,30],[144,2,144,3],[144,0,144,1],[143,0,143,6],[95,0,95,1],[95,5,95,10],[123,0,123,10],[126,0,126,1],[126,3,126,4],[126,5,126,6],[98,0,100,2],[96,3,96,10],[97,5,97,10],[119,0,119,1],[119,5,119,10],[99,3,99,6],[100,3,100,6],[97,0,97,1],[102,3,102,6],[116,3,116,10],[116,0,116,2],[117,0,117,2],[117,11,118,12]]}
[null,null,null,"Type of  Parshall flume ",null,{"$f":"IF(O13=\"F\",\" : wrong size of the throat\",\":   \"&\"flume  \"&D4&\" \")","v":":   flume  Parshall flume P1 "}]
[null,null,null,null,null,{"$f":"IF(F1=\" : wrong size of the throat\",\"     change the windth of the throat according table below\",\"\")","v":""}]
[null,null,null,"Choose size of Parshall flume\n","Windth of the throat\nstandartized and offered size can be changed by inserting right value  of the throat, formula in the cell will be ovewritted and renewed from F5",null,"Depth \nh (cm)","Flow\nQ (l/s)","Overall  uncertainity of measurement   \n( probability level 95 %)"]
[null,null,null,"Parshall flume P1",{"$f":"\"windth of the throat (cm) \"","v":"windth of the throat (cm) "},{"$f":"IF(D4=A20,2.54,IF(D4=A21,5.08,IF(D4=A22,7.62,IF(D4=A23,15.21,IF(D4=A24,22.9,IF(D4=A25,30.5,IF(D4=A26,45.7,IF(D4=A27,61,IF(D4=A28,91.4,\" FF\")))))))))","v":2.54},3,{"$f":"G59","v":0.26369960542549359},{"$f":"H59","v":9.9146655236205805E-2}]
[null,null,null,null,null,{"$f":"IF(D4=A20,2.54,IF(D4=A21,5.08,IF(D4=A22,7.62,IF(D4=A23,15.21,IF(D4=A24,22.9,IF(D4=A25,30.5,IF(D4=A26,45.7,IF(D4=A27,61,IF(D4=A28,91.4,\" FF\")))))))))","v":2.54},"contens of cell F5  is a copy of F4 as a save copy"]
[]
[null,null,null,"Consummtion curve of flow Q =",null,null,{"$f":"D41","v":6.0900000000000003E-2},{"$f":"\" * \"&\" h ^\"&E41","v":" *  h ^1,552"}]
[]
[]
[null,null,null,null,null,null,{"$f":"\" depth h is measured \"&IF(AND(O13=\"P1\"),30.7,IF(AND(O13=\"P2\"),34,IF(AND(O13=\"P3\"),39,IF(AND(O13=\"P4\"),53,IF(O13=\"P5\",75,IF(AND(O13=\"P6\"),120,IF(AND(O13=\"P7\"),130,IF(AND(O13=\"P8\"),135,IF(AND(O13=\"P9\"),150,\" H\")))))))))&\" cm in front of the throat\"","v":" depth h is measured 30,7 cm in front of the throat"}]
[null,null,null,null,null,null," flow Q is evaluated in m3/s",null,null,null,null,null,null,null,"DÚLEŽITÉ"]
[null,null,null,"  Standard uncertainity of parametrs Type B (probability 67%)  given for calculation of overall uncertainity of measurement with 95% of probability,uncertainity type A is near to zero  (according   EA 4/02)  :"]
[null,null,null,"relatively   uncertainity B of formula  (%) =",null,1.2,"for  Parshall flume reccomended  form  1,2 % to 1,5 % ",null,null,null,null,null,null,null,{"$f":"IF(AND(F4>2.34,F4<2.64),\"P1\",IF(AND(F4>4.88,F4<5.28),\"P2\",IF(AND(F4>7.3,F4<7.9),\"P3\",IF(AND(F4>14.5,F4<16),\"P4\",IF(AND(F4>21.4,F4<24.4),\"P5\",IF(AND(F4>29,F4<32),\"P6\",IF(AND(F4>43.7,F4<47.4),\"P7\",IF(AND(F4>59,F4<63),\"P8\",IF(AND(F4>89.4,F4<93.4),\"P9\",\"F\")))))))))","v":"P1"}]
[null,null,null,"uncertainity B of determination zero level (mm)=",null,0.5,"standard deviation of  zero level determination ussually  from     0,3 mm to 2 mm",null,null,null,null,null,null,null,{"$f":"F4","v":2.54}]
[null,null,null,"uncertainity B of determination surface level (mm)=",null,0.8,"standard deviation of  water surface level determination ussually  from  1 mm to 3mm"]
[null,null,null,{"$f":"\"uncertainity  B of  size of the throat  (mm) =\"","v":"uncertainity  B of  size of the throat  (mm) ="},null,0.2,"standard deviation of the throat windth determination"]
[]
[null,null,null,"Legend : measured  windth of the  throat \"on site\"  can differ from  the standard windth of the throat. \n                 The list of standartized flumes are in the table :\n    type of flume                                                                 P1          P2         P3          P4          P5         P6         P7         P8          P9  \n    standard size of the throat  (cm)                               2,54        5,08      7,62      15,24       22,9      30,5      45,7        61,0      91,4             \n    accepted changes of the throat (mm)                         2             2            3             7           15        15         20           20          20\n    uncertainity of  B size/windth of the throat  (mm)        0,2          0,4         0,8        1,2           1,5       1,8         2,1         2,5         2,8\n    uncertainity of zero level determination:  depends  form leveling of parshall flume,  size of it, how was measured ...vary from 0,3 to 4 mm\n    uncertainity of level surface determination:   depends from waves , from size of parshall, from conditions and from the way of \n                                                                          measurement of survace measurement, vary from 0,3mm to 3mm.\nCell F4 : throat windt in cm is chossen according formula for each size flume in the cell F4, if necessary you can overwritte it , if you need rewrite/demage  former formula, you can  copy contens back  (copy cell F5 back to F4)\n  \nFormula is calculated according DAVIS (1961, December, Journal of the Irrigation and Drainage Division)  formula is equal to ISO 9826 ,formula is certificated by Czech metrological institute Brno  TCM 142/95-2075. Consumtion curve can be change for atypical distance where  deph  h is read or atypical windth of the throat.                             (writte to us :   vrsecky@pars-aqua.cz)       "]
[]
["Parshall flume P1",null,null,"pa"]
["Parshall flume P2",null,null,"tr"]
["Parshall flume P3",null,null,"ob"]
["Parshall flume P4",null,null,"mv"]
["Parshall flume P5"]
["Parshall flume P6"]
["Parshall flume P7"]
["Parshall flume P8"]
["Parshall flume P9"]
[]
["Měřidlo - průtokoměr",null,null,null,null,null,null,null,null,null,{"$f":"O13","v":"P1"},null,null,null,null,null,null,null,"měrný Parshallův žlab Pars aqua z polypropylénu ",null,null,null,"měrný Venturiho žlab  z nerezu "]
[null,null,null,null,null,null,null,null,null,null,{"$f":"O14&\" cm\"","v":"2,54 cm"},null,null,null,null,null,null,null,"směrodatná šířka hrdla ",null,null,null,"směrodatná šířka hrdla "]
[]
["Zařazení měřidla",null,null,"Pracovní měřidlo nestanovené"]
["Vyobrazení přítok-odtok",null,null,null,null,null,null,null,null,null,null,null,null,null,"                         .                                                                                                                     "]
[]
[null,null,null,null,null,null,null,null,null,null,null,null,null,"V přepad",null,null,"Parshall",null,null,null,null,"Venutrák"]
["Popis hydraulické části",null,null,{"$f":"IF(CODE(K30)=80,Q37,IF(CODE(K30)<=57,N37,IF(CODE(K30)=77,V37)))","v":"Jedná se o typizovaný Parshallův měrný žlab Pars aqua  z polypropylénu.  Měrný žlab splňuje  podmínky dle ČMI TCM 142/95- 2075 - \" ČMI Rozhodnutí o schválení typu měřidla \". Odpadní voda natéká potrubím  DN 250 ( přechodová délka  cca 10 cm) do kruhové šachty DN 1000 a do Parshallova žlabu . Rozšíření z profilu Parshallova žlabu na profil přítokového kanálu je  plynulé- v souladu s certifikací TCM .Žlab je umístěn ve sklonu proti vodě 2 mm/400 mm. Rychlostní profil v měrném profilu je před měrným žlabem vyrovnaný, s říčním prouděním , na odtoku je říční proudění  ( koeficent zatopení od 0,33 a méně)  Hladina v recipentu je dostatečně zaklesnutá. Měrný objekt není poškozen.  Pro danou geometrii měrného žlabu platí pro výpočet průtoku postup uvedený v ČMI TCM 142/95- 2075.  "},null,null,null,null,null,null,null,null,null,"Trojúhelníkový přepad z polypropylénu je vybaven ostrou přepadovou hranu  . Vrchol přepadu je cca 30,5 cm nad dnem, šířka uklidňovací komory je 80 cm, délka 45 cm. Štěrbina pod nornou stěnou je cca 15 cm.Potrubí DN 200 je zaústěno cca 10 cm pod vrcholem přelivu. Na vtoku je u dna rozrážecí příčka. Měrný  přeliv  odpovídá ČSN ISO 1438 - 1 \"Tenkostěnné přelivy\" a pro danou geometrii měrného přepadu platí pro výpočet průtoku postup uvedený v ČSN ISO. Rychlostní profil v měrném profilu před měrným profilem vyrovnaný, hladina je klidná . Měrný objekt není poškozen.",null,null,"Jedná se o typizovaný Parshallův měrný žlab Pars aqua  z polypropylénu.  Měrný žlab splňuje  podmínky dle ČMI TCM 142/95- 2075 - \" ČMI Rozhodnutí o schválení typu měřidla \". Odpadní voda natéká potrubím  DN 250 ( přechodová délka  cca 10 cm) do kruhové šachty DN 1000 a do Parshallova žlabu . Rozšíření z profilu Parshallova žlabu na profil přítokového kanálu je  plynulé- v souladu s certifikací TCM .Žlab je umístěn ve sklonu proti vodě 2 mm/400 mm. Rychlostní profil v měrném profilu je před měrným žlabem vyrovnaný, s říčním prouděním , na odtoku je říční proudění  ( koeficent zatopení od 0,33 a méně)  Hladina v recipentu je dostatečně zaklesnutá. Měrný objekt není poškozen.  Pro danou geometrii měrného žlabu platí pro výpočet průtoku postup uvedený v ČMI TCM 142/95- 2075.  ",null,null,null,null,"Jedná se o typizovaný Venturiho žlab MVŽ B II.   Měrný žlab splňuje všechny podmínky dle typového podkladu  HDP Praha. Odpadní voda natéká koridorem délky  3,5m, íře 0,4m do měrného objektu . Rozšíření z profilu MVŽ B II na profil přítokového kanáluje vyhovující. Rychlostní profil v měrném profilu je před měrným žlabem vyrovnaný, s říčním prouděním, na odtoku je bystřinné proudění  (koeficent zatopení vyhovuje).  Hladina v recipentu je dostatečně zaklesnutá. Měrný objekt není poškozen.  Pro danou geometrii měrného žlabu platí pro výpočet průtoku postup uvedený v typovém podkladu HDP a zprávy vÚV TGM 2000. "]
[null,null,null,"Při  provozování  objektu v souladu s návodem na obsluhu a pokud nedojde k významné  změně rozsahu průtoku vod hydraulická část vyhovuje podmínkám zákona č.  254/2001 Sb.  \"O vodách\" , Nařízení vlády  143/2012 Sb. a vyhlášky 123/2012 Sb.                                                                                                        ",null,null,null,null,null,null,null,null,"tento řádek se nekopíruje do úředního měření"]
[]
[null,null,null,"a"]
[null,null,null,{"$f":"F41*(IF($K$30<130,G41,O14)/G41)","v":6.0900000000000003E-2},{"$f":"IF($K$30=\"P1\",křivky!C3,IF($K$30=\"P2\",křivky!C4,IF($K$30=\"P3\",křivky!C5,IF($K$30=\"P4\",křivky!C6,IF($K$30=\"P5\",křivky!C7,IF($K$30=\"P6\",křivky!C8,IF($K$30=\"P7\",křivky!C9,IF($K$30=\"P8\",křivky!C10,IF($K$30=\"P9\",křivky!C11,IF($K$30<130,křivky!C12,IF($K$30=\"MVŽBII30\",křivky!C13,IF($K$30=\"MVŽBII20\",křivky!C14,IF($K$30=\"MVŽBII10\",křivky!C16,IF($K$30=\"MVŽBII40\",křivky!C17,IF($K$30=\"MVŽBII15\",křivky!C15)))))))))))))))","v":1.552},{"$f":"IF($K$30=\"P1\",křivky!B3,IF($K$30=\"P2\",křivky!B4,IF($K$30=\"P3\",křivky!B5,IF($K$30=\"P4\",křivky!B6,IF($K$30=\"P5\",křivky!B7,IF($K$30=\"P6\",křivky!B8,IF($K$30=\"P7\",křivky!B9,IF($K$30=\"P8\",křivky!B10,IF($K$30=\"P9\",křivky!B11,IF($K$30<130,křivky!B12,IF($K$30=\"MVŽBII30\",křivky!B13,IF($K$30=\"MVŽBII20\",křivky!B14,IF($K$30=\"MVŽBII10\",křivky!B16,IF($K$30=\"MVŽBII40\",křivky!B17,IF($K$30=\"MVŽBII15\",křivky!B15)))))))))))))))","v":6.0900000000000003E-2},{"$f":"IF($K$30=\"P1\",křivky!D3,IF($K$30=\"P2\",křivky!D4,IF($K$30=\"P3\",křivky!D5,IF($K$30=\"P4\",křivky!D6,IF($K$30=\"P5\",křivky!D7,IF($K$30=\"P6\",křivky!D8,IF($K$30=\"P7\",křivky!D9,IF($K$30=\"P8\",křivky!D10,IF($K$30=\"P9\",křivky!D11,IF($K$30<130,křivky!D12,IF($K$30=\"MVŽBII30\",křivky!D13,IF($K$30=\"MVŽBII20\",křivky!D14,IF($K$30=\"MVŽBII10\",křivky!D16,IF($K$30=\"MVŽBII40\",křivky!D17,IF($K$30=\"MVŽBII15\",křivky!D15)))))))))))))))","v":2.54},null,null,null,{"$f":"IF($K$30=\"P1\",křivky!I3,IF($K$30=\"P2\",křivky!I4,IF($K$30=\"P3\",křivky!I5,IF($K$30=\"P4\",křivky!I6,IF($K$30=\"P5\",křivky!I7,IF($K$30=\"P6\",křivky!I8,IF($K$30=\"P7\",křivky!I9,IF($K$30=\"P8\",křivky!I10,IF($K$30=\"P9\",křivky!I11,IF($K$30<130,křivky!I12,IF($K$30=\"MVŽBII30\",křivky!I13,IF($K$30=\"MVŽBII20\",křivky!I14,IF($K$30=\"MVŽBII10\",křivky!I16,IF($K$30=\"MVŽBII40\",křivky!I17,IF($K$30=\"MVŽBII15\",křivky!I15)))))))))))))))","v":23}]
["Podmínky kontrolního                  měření",null,null,"Vzhledem k omezeným možnostem regulace průtoku měrným profilem byly provedeny celkem tři měření ."]
["Teplota vzduchu",null,null,5,"0C"]
["Teplota vody",null,null,">10","°C",null,null,null,"celoročně nezamrzá"]
["Vlnění hladiny",null,null,1,null,"při průtoku",null,5.0000000000000001E-3]
["Použitá měřící metoda pro úřední měření",null,null,{"$f":"IF(CODE(K30)=80,M47,IF(CODE(K30)<=57,M46,IF(CODE(K30)=77,M48)))","v":"Úřední měření hodnot průtoků na Parshallovu žlabu ( viz tabulka) bylo provedeno výpočtem z konzumční křivky (funkční závislot průtoku na přepadové výšce) pro různé přepadové výšky. Konzumční křivka  je  odvozena dle certifikace ČMI TCM 142/95- 2075 na základě úředně změřených geometrickýchých charakteristik Parshallova žlabu a  změřených podmínek na přítoku a odtoku měrného objektu průtoků ( sklon, průměr, drsnost a tvar kanálu)  .  "},null,null,null,null,null,null,null,null,"Úřední měření hodnot průtoků na ostrohranném přelivu ( viz tabulka) bylo provedeno výpočtem z konzumční křivky (funkční závislot průtoku na přepadové výšce) pro různé přepadové výšky. Konzumční křivka  je  odvozena dle dle ČSN ISO 1438-1 Tenkostěnné přelivy na základě úředně změřených geometrickýchých charakteristik měrného přelivu a  změřených podmínek na přítoku a odtoku měrného objektu průtoků ( sklon, průměr, drsnost a tvar kanálu)  . "]
["Závěr a doporučení",null,null,"Hydraulická část vyhovuje podmínkám  zákona č.  254/2001 Sb.  \"O vodách\" , Nařízení vlády  143/2012 Sb. a vyhlášky 123/2012 Sb za předpokladu pravidelné kontroly a čištění  měrného objektu a za předpokladu , že objekt není zatopen spodní vodou.                                                                                                         ",null,null,null,null,null,null,null,null,"Úřední měření hodnot průtoků na Parshallovu žlabu ( viz tabulka) bylo provedeno výpočtem z konzumční křivky (funkční závislot průtoku na přepadové výšce) pro různé přepadové výšky. Konzumční křivka  je  odvozena dle certifikace ČMI TCM 142/95- 2075 na základě úředně změřených geometrickýchých charakteristik Parshallova žlabu a  změřených podmínek na přítoku a odtoku měrného objektu průtoků ( sklon, průměr, drsnost a tvar kanálu)  .  "]
[]
["Popis registračního zařízení - snímač/elektronika"]
[]
[]
[]
["Zařazení měřidla",null,null,"Pracovní měřidlo nestanovené"]
["Vyobrazení snímače a vyhodnocovače- "]
[]
[null,null,null,null,null,null,null,null,null,null,null,null,null,null,null,null,"SPA"]
[]
[null,null,null,null,null,null,null,null,null,null,null,"NEZADAVÁ SE !!! odhad směrodatné odchylky hloubky pro instalovaný elektronický vyhodnocovač (mm), dtto řádek kde se zadává D90,G90","nejistota průtoku z důvodu chyby v hloubce vyhodnocovače  (% )","nejist průtoku z důvodu chyby nuly %",null,"v tabulce jsou uvedeny intervaly měření průtoku Rozsah I a Rozsah II  s vyčíslením dosažitelné rozšířené nejistoty měření (hladina pravděpodobnosti výskytu 95 %) při optimíálním seřízení stávajícího elektronického vyhodnocovače  bez započítání systematické chyby seřízení stávajícího elektronického vyhodnocovače"]
[null,null,null,null,{"$f":"G4","v":3},"Q (l/s)",{"$f":"D41*POWER((E59/100),E41)*1000","v":0.26369960542549359},{"$f":"2*SQRT(POWER(D94,2)+POWER(M59,2)+POWER(N59,2)+POWER(IF(CODE(K30)=80,L96,IF(CODE(K30)<=57,L95,IF(CODE(K30)=77,L96))),2))/100","v":9.9146655236205805E-2},null,null,null,{"$f":"D95","v":0.8},{"$f":"(POWER(L59/10/E59+1,IF(CODE(K30)=80,1.5,IF(CODE(K30)<=57,2.5,IF(CODE(K30)=77,1.5))))-1)*100","v":4.026549317772532},{"$f":"(POWER(D96/10/E59+1,IF(CODE(K30)=80,1.5,IF(CODE(K30)<=57,2.5,IF(CODE(K30)=77,1.5))))-1)*100","v":2.5103879108338445}]
[]
[]
[]
[]
[]
[]
[null,"Funkce registračního zařízení - snímač/elektronika"]
[]
[]
[]
[]
[]
[]
[]
[]
[]
["Stav sumace (vyhodnocovač )",null,null,176227,null,null,"m3","63043hod"]
["Závěr",null,null,"Ultrazvukový průtokoměr vyhovuje podmínkám zákona č.  254/2001 Sb.  \"O vodách\" , Nařízení vlády  143/2012 Sb. a vyhlášky 123/2012 Sb. "]
[]
[]
[]
[]
[]
[]
[]
[]
[]
[]
[]
[]
[]
[]
[]
[]
[null,null,"vzorce",{"$f":"F13","v":1.2},"%",null,null,null,null,null,null,null,null,null,null,"průměrná směrodatná odchylka hloubky"]
[null,null,"hloubky",{"$f":"F15","v":0.8},"mm pro Qmin        a ",null,null,null,null,null,null,{"$f":"(TAN(RADIANS(K30+D98)/2)-TAN(RADIANS(K30)/2))/TAN(RADIANS(K30)/2)*100","v":{"$error":"#VALUE!"}},null,null,null,{"$f":"(D95+G95)/2","v":0.4}]
[null,null,"nuly",{"$f":"F14","v":0.5},"mm",null,null,null,null,null,null,{"$f":"(D98/10)/O14*100","v":0.78740157480314954}]
[null,null,"pozn.:",{"$f":"IF(CODE(K30)=80,O120,IF(CODE(K30)<=57,O122,IF(CODE(K30)=77,O121)))","v":0}]
[null,null,{"$f":"IF(CODE(K30)=80,O119,IF(CODE(K30)<=57,O118,IF(CODE(K30)=77,O119)))","v":0},{"$f":"F16","v":0.2},{"$f":"IF(CODE(K30)=80,P119,IF(CODE(K30)<=57,P118,IF(CODE(K30)=77,P119)))","v":0}]
[]
[]
[]
[]
[]
[]
[]
[]
[]
[]
[]
[]
[]
[]
[]
[]
[]
[]
[]
[]
[]
[]
[]
[]
[]
[]
[]
[]
[]
[]
[]
[]
[]
[]
[]
[]
[]
[]
[]
[]
[]
[]
[]
[]
[]
[]
[]
[]
[]
[]
[]
[]
[]
[]
[]
[]
[]
[]
[]
[]
[]
[]
[]
[]
[]
[]
[]
[]
[]
[]
[]
[]
[]
[]
[]
[]
[]
[]
[]
[]
[]
[]
[]
[]
[]
[]
[]
[]
[]
[]
[null,null,null,null,null,null,null,null,null,null,null,null,null,null,50,1.3]
[null,null,null,null,null,null,null,null,null,null,null,null,null,null,80,1.2]
[null,null,null,null,null,null,null,null,null,null,null,null,null,null,120,1.2]

{"sheet":"křivky","index":1,"n_rows":11,"n_cols":9,"rows_kept":11,"cut":false,"hidden":false,"merged":[]}
[null,"standard","standard",null,null,null,"Chyba vzorce"]
[null,"a","b","hrdlo (cm)",null,null,"(%)",null,"výška cm"]
["P1",6.0900000000000003E-2,1.552,2.54,null,null,1.5,null,23]
["P2",0.1197,1.5529999999999999,5.08,null,null,1.5,null,26.4]
["P3",0.1784,1.5549999999999999,7.62,null,null,1.5,null,46.7]
["P4",0.35399999999999998,1.5580000000000001,15.24,null,null,1.5,null,62]
["P5",0.52139999999999997,1.5580000000000001,22.86,null,null,1.5,null,80]
["P6",0.67300000000000004,1.556,30.48,null,null,2,null,92.5]
["P7",1.0149999999999999,1.56,45.7,null,null,2,null,92.5]
["P8",1.369,1.5640000000000001,61,null,null,2,null,92.5]
["P9",2.08,1.569,91.4,null,null,2,null,92.5]